[Event "The Kvibergspelen 2024"]
[Site "Kviberg Park Hotel & Conference, Krutvagen 2, Gothenburg, Sweden"]
[Date "2024.09.06"]
[Round "3.16"]
[White "Thomasson, Staffan"]
[Black "Rajcevski, Dejan"]
[Result "0-1"]
[TimeControl "15 minutes + 5 seconds per move from move one (Round 1 - 4) / 90 minutes + 30 seconds per move from move one (Round 5 - 8)"]
[WhiteFideId "1706284"]
[BlackFideId "1759027"]
[WhiteElo "1877"]
[BlackElo "2131"]

1. c4 {[%clk 00:15:09]} e6 {[%clk 00:15:06]} {[%emt 00:00:05]} 2. g3 {[%clk
00:15:12]} {[%emt 00:00:02]} d5 {[%clk 00:15:09]} {[%emt 00:00:02]} 3. Bg2
{[%clk 00:15:14]} {[%emt 00:00:02]} Nf6 {[%clk 00:15:13]} {[%emt 00:00:01]} 4.
Nf3 {[%clk 00:15:17]} {[%emt 00:00:02]} Be7 {[%clk 00:15:15]} {[%emt 00:00:03]}
5. d4 {[%clk 00:14:56]} {[%emt 00:00:26]} O-O {[%clk 00:15:16]} {[%emt
00:00:05]} 6. O-O {[%clk 00:14:46]} {[%emt 00:00:15]} a6 {[%clk 00:15:12]}
{[%emt 00:00:10]} 7. b3 {[%clk 00:14:41]} {[%emt 00:00:10]} dxc4 {[%clk
00:14:43]} {[%emt 00:00:33]} 8. bxc4 {[%clk 00:14:44]} {[%emt 00:00:02]} c5
{[%clk 00:14:45]} {[%emt 00:00:03]} 9. e3 {[%clk 00:14:18]} {[%emt 00:00:31]}
Nc6 {[%clk 00:14:30]} {[%emt 00:00:19]} 10. Nc3 {[%clk 00:14:18]} {[%emt
00:00:06]} Ra7 {[%clk 00:14:28]} {[%emt 00:00:07]} 11. d5 {[%clk 00:13:33]}
{[%emt 00:00:50]} exd5 {[%clk 00:13:54]} {[%emt 00:00:39]} 12. cxd5 {[%clk
00:13:34]} {[%emt 00:00:04]} Na5 {[%clk 00:12:49]} {[%emt 00:01:09]} 13. a4
{[%clk 00:11:00]} {[%emt 00:02:40]} c4 {[%clk 00:12:18]} {[%emt 00:00:37]} 14.
Rb1 {[%clk 00:10:09]} {[%emt 00:00:55]} Bf5 {[%clk 00:10:51]} {[%emt 00:01:31]}
15. Qd4 {[%clk 00:07:29]} {[%emt 00:02:46]} Bxb1 {[%clk 00:09:13]} {[%emt
00:01:43]} 16. Qxa7 {[%clk 00:07:32]} {[%emt 00:00:03]} Bd3 {[%clk 00:09:14]}
{[%emt 00:00:03]} 17. Rd1 {[%clk 00:07:24]} {[%emt 00:00:13]} Qc7 {[%clk
00:06:26]} {[%emt 00:02:53]} 18. Nd4 {[%clk 00:06:39]} {[%emt 00:00:50]} Bc5
{[%clk 00:05:57]} {[%emt 00:00:35]} 19. d6 {[%clk 00:04:06]} {[%emt 00:02:37]}
Qxd6 {[%clk 00:05:53]} {[%emt 00:00:09]} 20. Ncb5 {[%clk 00:03:37]} {[%emt
00:00:34]} Qe7 {[%clk 00:05:34]} {[%emt 00:00:24]} 21. Ba3 {[%clk 00:02:24]}
{[%emt 00:01:18]} Bxa3 {[%clk 00:05:03]} {[%emt 00:00:36]} 22. Nxa3 {[%clk
00:02:11]} {[%emt 00:00:18]} Qxa3 {[%clk 00:04:51]} {[%emt 00:00:16]} 23. Bxb7
{[%clk 00:01:29]} {[%emt 00:00:47]} Nxb7 {[%clk 00:04:29]} {[%emt 00:00:28]} 24.
Qxb7 {[%clk 00:01:31]} {[%emt 00:00:03]} Qxa4 {[%clk 00:04:27]} {[%emt
00:00:07]} 25. Nc6 {[%clk 00:01:07]} {[%emt 00:00:28]} Qxd1+ {[%clk 00:04:20]}
{[%emt 00:00:12]} 0-1

[Event "The Kvibergspelen 2024"]
[Site "Kviberg Park Hotel & Conference, Krutvagen 2, Gothenburg, Sweden"]
[Date "2024.09.06"]
[Round "3.17"]
[White "Al Waeli, Laith"]
[Black "Frisk, Anders"]
[Result "1-0"]
[TimeControl "15 minutes + 5 seconds per move from move one (Round 1 - 4) / 90 minutes + 30 seconds per move from move one (Round 5 - 8)"]
[WhiteTitle "FM"]
[WhiteFideId "4801059"]
[BlackFideId "1718797"]
[WhiteElo "2049"]
[BlackElo "1871"]

1. e4 {[%clk 00:13:47]} {[%emt 00:01:23]} c5 {[%clk 00:15:09]} {[%emt
00:00:02]} 2. Nf3 {[%clk 00:13:39]} {[%emt 00:00:11]} Nc6 {[%clk 00:15:12]}
{[%emt 00:00:02]} 3. c3 {[%clk 00:13:36]} {[%emt 00:00:09]} e6 {[%clk
00:14:51]} {[%emt 00:00:26]} 4. d4 {[%clk 00:13:39]} {[%emt 00:00:01]} d5
{[%clk 00:14:37]} {[%emt 00:00:20]} 5. exd5 {[%clk 00:13:41]} {[%emt 00:00:02]}
exd5 {[%clk 00:14:13]} {[%emt 00:00:30]} 6. Bb5 {[%clk 00:12:52]} {[%emt
00:00:54]} Nf6 {[%clk 00:13:29]} {[%emt 00:00:51]} 7. Qe2+ {[%clk 00:12:07]}
{[%emt 00:00:48]} Qe7 {[%clk 00:12:17]} {[%emt 00:01:16]} 8. Bg5 {[%clk
00:11:29]} {[%emt 00:00:43]} Qxe2+ {[%clk 00:11:50]} {[%emt 00:00:33]} 9. Kxe2
{[%clk 00:11:24]} {[%emt 00:00:10]} Be7 {[%clk 00:10:54]} {[%emt 00:01:01]} 10.
dxc5 {[%clk 00:11:19]} {[%emt 00:00:09]} a6 {[%clk 00:09:22]} {[%emt 00:01:38]}
11. Bxc6+ {[%clk 00:10:57]} {[%emt 00:00:27]} bxc6 {[%clk 00:09:25]} 12. b4
{[%clk 00:10:55]} {[%emt 00:00:09]} h6 {[%clk 00:09:09]} {[%emt 00:00:22]} 13.
Be3 {[%clk 00:10:13]} {[%emt 00:00:45]} Ne4 {[%clk 00:08:36]} 14. Bd4 {[%clk
00:10:11]} {[%emt 00:00:45]} O-O {[%clk 00:08:09]} 15. Nbd2 {[%clk 00:10:03]}
{[%emt 00:00:45]} f5 {[%emt 00:00:46]} 16. Ne5 {[%clk 00:09:35]} Bb7 {[%emt
00:00:47]} 17. f3 {[%clk 00:09:00]} Ng5 {[%clk 00:06:52]} {[%emt 00:01:13]} 18.
Kf2 {[%clk 00:08:20]} Bf6 {[%clk 00:06:17]} {[%emt 00:01:26]} 19. Rhe1 {[%clk
00:07:35]} Rfe8 {[%clk 00:05:30]} {[%emt 00:01:41]} 20. Nb3 {[%clk 00:06:40]}
Ne6 {[%clk 00:04:49]} {[%emt 00:01:46]} 21. Nd7 {[%clk 00:04:57]} Bxd4+ {[%clk
00:02:46]} {[%emt 00:03:55]} 22. cxd4 {[%emt 00:00:02]} Nf4 {[%clk 00:02:10]}
{[%emt 00:00:41]} 23. Ne5 {[%clk 00:04:43]} {[%emt 00:00:23]} Ne6 {[%clk
00:01:14]} {[%emt 00:01:01]} 24. Re3 {[%clk 00:04:23]} {[%emt 00:00:26]} Nc7
{[%clk 00:01:09]} {[%emt 00:00:10]} 25. Rae1 {[%clk 00:04:15]} {[%emt
00:00:12]} Nb5 {[%clk 00:00:46]} {[%emt 00:00:28]} 26. Rd3 {[%clk 00:02:55]}
{[%emt 00:01:25]} g5 {[%clk 00:00:36]} {[%emt 00:00:16]} 27. a4 {[%clk
00:02:40]} {[%emt 00:00:20]} Nc7 {[%clk 00:00:27]} {[%emt 00:00:14]} 28. Na5
{[%clk 00:02:43]} {[%emt 00:00:02]} Rab8 {[%clk 00:00:18]} {[%emt 00:00:15]} 29.
Rdd1 {[%clk 00:02:40]} {[%emt 00:00:08]} Kg7 {[%clk 00:00:15]} {[%emt
00:00:08]} 30. Nd7 {[%clk 00:02:34]} {[%emt 00:00:11]} 1-0

[Event "The Kvibergspelen 2024"]
[Site "Kviberg Park Hotel & Conference, Krutvagen 2, Gothenburg, Sweden"]
[Date "2024.09.06"]
[Round "3.18"]
[White "Karlsson, Stefan"]
[Black "Green, David"]
[Result "1-0"]
[TimeControl "15 minutes + 5 seconds per move from move one (Round 1 - 4) / 90 minutes + 30 seconds per move from move one (Round 5 - 8)"]
[WhiteFideId "1771183"]
[BlackFideId "1769332"]
[WhiteElo "2035"]
[BlackElo "1869"]

1. e4 {[%clk 00:15:08]} c5 {[%clk 00:13:56]} {[%emt 01:01:00]} 2. Nf3 {[%clk
00:14:46]} {[%emt 00:00:08]} e6 {[%clk 00:14:00]} {[%emt 00:00:01]} 3. c3
{[%clk 00:14:50]} {[%emt 00:00:02]} Nf6 {[%clk 00:14:01]} {[%emt 00:00:02]} 4.
e5 {[%clk 00:14:54]} {[%emt 00:00:02]} Nd5 {[%clk 00:14:01]} {[%emt 00:00:06]}
5. Bc4 {[%clk 00:14:58]} {[%emt 00:00:02]} Be7 {[%clk 00:13:21]} {[%emt
00:00:44]} 6. Bxd5 {[%clk 00:13:34]} {[%emt 00:01:29]} exd5 {[%clk 00:13:25]}
{[%emt 00:00:01]} 7. d4 {[%clk 00:13:36]} {[%emt 00:00:02]} d6 {[%clk
00:11:14]} {[%emt 00:02:17]} 8. exd6 {[%clk 00:13:25]} {[%emt 00:00:16]} Bxd6
{[%clk 00:10:42]} {[%emt 00:00:38]} 9. Bg5 {[%clk 00:12:37]} {[%emt 00:00:52]}
Qb6 {[%clk 00:09:31]} {[%emt 00:01:16]} 10. Qe2+ {[%clk 00:11:05]} {[%emt
00:01:37]} Be6 {[%clk 00:09:05]} {[%emt 00:00:29]} 11. dxc5 {[%clk 00:10:16]}
{[%emt 00:00:56]} Bxc5 {[%clk 00:08:16]} {[%emt 00:00:55]} 12. b4 {[%clk
00:10:11]} {[%emt 00:00:09]} Bd6 {[%clk 00:07:13]} {[%emt 00:01:08]} 13. Nd4
{[%clk 00:08:50]} {[%emt 00:01:25]} O-O {[%clk 00:06:35]} {[%emt 00:00:45]} 14.
Nxe6 {[%clk 00:08:35]} {[%emt 00:00:18]} fxe6 {[%clk 00:04:23]} {[%emt
00:02:18]} 15. Qxe6+ {[%clk 00:08:16]} {[%emt 00:00:24]} Kh8 {[%clk 00:04:25]}
{[%emt 00:00:02]} 16. Be3 {[%clk 00:07:44]} {[%emt 00:00:36]} Qc6 {[%clk
00:03:31]} {[%emt 00:01:00]} 17. b5 {[%clk 00:07:03]} {[%emt 00:00:47]} Qc7
{[%clk 00:02:03]} {[%emt 00:01:32]} 18. h4 {[%clk 00:02:38]} {[%emt 00:04:29]}
Ba3 {[%clk 00:01:30]} {[%emt 00:00:38]} 19. Nd2 {[%clk 00:01:23]} {[%emt
00:01:21]} Qxc3 {[%clk 00:01:10]} {[%emt 00:00:26]} 20. O-O {[%clk 00:01:17]}
{[%emt 00:00:10]} d4 {[%clk 00:00:08]} {[%emt 00:01:08]} 21. Ne4 {[%clk
00:00:58]} {[%emt 00:00:23]} Qb4 {[%clk 00:00:09]} {[%emt 00:00:03]} 22. Rab1
{[%clk 00:00:45]} {[%emt 00:00:19]} Qa4 {[%clk 00:00:07]} {[%emt 00:00:08]} 23.
Bg5 {[%clk 00:00:15]} {[%emt 00:00:35]} a6 {[%clk 00:00:07]} {[%emt 00:00:05]}
24. Be7 {[%clk 00:00:14]} {[%emt 00:00:06]} Re8 {[%clk 00:00:06]} {[%emt
00:00:07]} 25. Ng5 {[%clk 00:00:08]} {[%emt 00:00:10]} Rxe7 {[%clk 00:00:10]}
{[%emt 00:00:01]} 26. Nf7+ {[%clk 00:00:11]} {[%emt 00:00:02]} Rxf7 {[%emt
00:00:35]} 27. Qxf7 {[%emt 00:00:12]} h6 {[%clk 00:15:05]} {[%emt 00:00:14]}
1-0

[Event "The Kvibergspelen 2024"]
[Site "Kviberg Park Hotel & Conference, Krutvagen 2, Gothenburg, Sweden"]
[Date "2024.09.06"]
[Round "3.19"]
[White "Dingertz, Filip"]
[Black "Sigeman, Johan"]
[Result "1-0"]
[TimeControl "15 minutes + 5 seconds per move from move one (Round 1 - 4) / 90 minutes + 30 seconds per move from move one (Round 5 - 8)"]
[WhiteFideId "1757288"]
[BlackFideId "1705601"]
[WhiteElo "1858"]
[BlackElo "2032"]

1. c4 {[%clk 00:15:09]} e5 {[%clk 00:15:01]} {[%emt 00:00:09]} 2. Nc3 {[%emt
00:00:06]} Nc6 {[%clk 00:15:01]} {[%emt 00:00:01]} 3. g3 {[%clk 00:15:15]}
{[%emt 00:00:02]} f5 {[%clk 00:13:29]} {[%emt 00:01:38]} 4. Bg2 {[%clk
00:15:06]} {[%emt 00:00:14]} Nf6 {[%clk 00:13:25]} {[%emt 00:00:08]} 5. d3
{[%clk 00:14:43]} {[%emt 00:00:29]} g6 {[%clk 00:12:34]} {[%emt 00:00:55]} 6.
e4 {[%clk 00:14:30]} {[%emt 00:00:18]} d6 {[%clk 00:12:13]} {[%emt 00:00:26]} 7.
h4 {[%clk 00:13:13]} {[%emt 00:01:23]} Bg7 {[%clk 00:09:17]} {[%emt 00:03:00]}
8. Bg5 {[%clk 00:10:30]} {[%emt 00:02:48]} h6 {[%clk 00:07:01]} {[%emt
00:02:22]} 9. Bxf6 {[%clk 00:10:28]} {[%emt 00:00:07]} Qxf6 {[%clk 00:06:05]}
{[%emt 00:01:00]} 10. Nge2 {[%clk 00:09:45]} {[%emt 00:00:48]} O-O {[%clk
00:04:45]} {[%emt 00:01:25]} 11. Nd5 {[%clk 00:09:13]} {[%emt 00:00:37]} Qf7
{[%clk 00:03:53]} {[%emt 00:00:56]} 12. exf5 {[%clk 00:08:00]} {[%emt
00:01:19]} Bxf5 {[%clk 00:02:30]} {[%emt 00:01:28]} 13. O-O {[%clk 00:08:03]}
{[%emt 00:00:03]} Rae8 {[%clk 00:02:06]} {[%emt 00:00:28]} 14. Nec3 {[%clk
00:07:48]} {[%emt 00:00:21]} Nd4 {[%clk 00:01:25]} {[%emt 00:00:46]} 15. Ne3
{[%clk 00:07:35]} {[%emt 00:00:18]} c6 {[%clk 00:01:00]} {[%emt 00:00:30]} 16.
Nxf5 {[%clk 00:07:26]} {[%emt 00:00:13]} Qxf5 {[%clk 00:00:54]} {[%emt
00:00:11]} 17. Ne4 {[%clk 00:07:05]} {[%emt 00:00:25]} Nf3+ {[%clk 00:00:40]}
{[%emt 00:00:20]} 18. Bxf3 {[%clk 00:07:04]} {[%emt 00:00:07]} Qxf3 {[%clk
00:00:43]} {[%emt 00:00:02]} 19. Nxd6 {[%clk 00:06:41]} {[%emt 00:00:28]} Rd8
{[%clk 00:00:36]} {[%emt 00:00:12]} 20. Nxb7 {[%clk 00:01:56]} {[%emt
00:04:50]} Rb8 {[%clk 00:00:23]} {[%emt 00:00:17]} 21. Nc5 {[%clk 00:01:53]}
{[%emt 00:00:09]} Rxb2 {[%clk 00:00:18]} {[%emt 00:00:09]} 22. Qxf3 {[%clk
00:01:25]} {[%emt 00:00:34]} Rxf3 {[%clk 00:00:21]} {[%emt 00:00:01]} 23. Kg2
{[%clk 00:01:24]} {[%emt 00:00:07]} Rf7 {[%clk 00:00:15]} {[%emt 00:00:11]} 24.
a4 {[%clk 00:01:18]} {[%emt 00:00:12]} e4 {[%clk 00:00:09]} {[%emt 00:00:10]}
25. Nxe4 {[%clk 00:01:14]} {[%emt 00:00:09]} Rb4 {[%clk 00:00:07]} {[%emt
00:00:07]} 26. Rfb1 {[%clk 00:00:34]} {[%emt 00:00:44]} a5 {[%clk 00:15:05]}
1-0

[Event "The Kvibergspelen 2024"]
[Site "Kviberg Park Hotel & Conference, Krutvagen 2, Gothenburg, Sweden"]
[Date "2024.09.06"]
[Round "3.20"]
[White "Kallen, Jonas"]
[Black "Kleist, Axel"]
[Result "0-1"]
[TimeControl "15 minutes + 5 seconds per move from move one (Round 1 - 4) / 90 minutes + 30 seconds per move from move one (Round 5 - 8)"]
[WhiteFideId "1712896"]
[BlackFideId "1764322"]
[WhiteElo "2026"]
[BlackElo "1855"]

1. e4 {[%clk 00:15:08]} {[%emt 00:00:02]} c5 {[%clk 00:15:09]} 2. Nf3 {[%clk
00:15:11]} {[%emt 00:00:01]} d6 {[%clk 00:15:14]} {[%emt 00:00:01]} 3. d4
{[%clk 00:15:14]} {[%emt 00:00:02]} cxd4 {[%clk 00:15:17]} 4. Nxd4 {[%clk
00:15:18]} {[%emt 00:00:01]} Nf6 {[%clk 00:15:22]} {[%emt 00:00:01]} 5. Nc3
{[%clk 00:15:22]} {[%emt 00:00:01]} g6 {[%clk 00:15:25]} {[%emt 00:00:03]} 6.
Be2 {[%clk 00:15:22]} {[%emt 00:00:04]} Nc6 {[%clk 00:15:26]} {[%emt 00:00:03]}
7. Be3 {[%clk 00:15:21]} {[%emt 00:00:06]} h5 {[%clk 00:14:38]} {[%emt
00:00:54]} 8. Nb3 {[%clk 00:15:02]} {[%emt 00:00:25]} Bg7 {[%clk 00:12:43]}
{[%emt 00:02:00]} 9. f3 {[%clk 00:14:53]} {[%emt 00:00:13]} Be6 {[%clk
00:12:43]} {[%emt 00:00:05]} 10. Nd5 {[%clk 00:14:26]} {[%emt 00:00:33]} Bxd5
{[%clk 00:11:35]} {[%emt 00:01:12]} 11. exd5 {[%clk 00:14:29]} {[%emt
00:00:02]} Ne5 {[%clk 00:11:39]} 12. O-O {[%clk 00:13:36]} {[%emt 00:00:57]}
Rc8 {[%clk 00:10:24]} {[%emt 00:01:21]} 13. Qd4 {[%clk 00:10:42]} {[%emt
00:03:00]} Rxc2 {[%clk 00:07:06]} {[%emt 00:03:22]} 14. Bb5+ {[%clk 00:10:43]}
{[%emt 00:00:03]} Kf8 {[%clk 00:07:10]} {[%emt 00:00:02]} 15. Qxa7 {[%clk
00:10:16]} {[%emt 00:00:32]} Nxd5 {[%clk 00:06:56]} {[%emt 00:00:18]} 16. Bd4
{[%clk 00:09:34]} {[%emt 00:00:47]} Nf4 {[%clk 00:03:56]} {[%emt 00:03:06]} 17.
Rf2 {[%clk 00:07:54]} {[%emt 00:01:45]} Rxf2 {[%clk 00:03:41]} {[%emt
00:00:20]} 18. Bxf2 {[%clk 00:07:57]} {[%emt 00:00:02]} e6 {[%clk 00:02:24]}
{[%emt 00:01:22]} 19. Bg3 {[%clk 00:04:38]} {[%emt 00:03:23]} Bh6 {[%clk
00:01:18]} {[%emt 00:01:12]} 20. Qxb7 {[%clk 00:02:42]} {[%emt 00:02:02]} h4
{[%clk 00:01:20]} {[%emt 00:00:02]} 21. Bxf4 {[%clk 00:02:36]} {[%emt
00:00:11]} Bxf4 {[%clk 00:01:22]} {[%emt 00:00:03]} 22. Qe4 {[%clk 00:02:20]}
{[%emt 00:00:20]} Qg5 {[%clk 00:01:16]} {[%emt 00:00:13]} 23. Bf1 {[%clk
00:00:58]} {[%emt 00:01:26]} d5 {[%clk 00:00:54]} {[%emt 00:00:26]} 24. Qe2
{[%clk 00:00:49]} {[%emt 00:00:14]} Kg7 {[%clk 00:00:45]} {[%emt 00:00:16]} 25.
Kh1 {[%clk 00:00:30]} {[%emt 00:00:23]} Nc4 {[%clk 00:00:33]} {[%emt 00:00:17]}
26. Nc5 {[%clk 00:00:24]} {[%emt 00:00:10]} Rc8 {[%clk 00:00:19]} {[%emt
00:00:20]} 27. Nd3 {[%clk 00:00:28]} {[%emt 00:00:02]} Be3 {[%clk 00:00:19]}
{[%emt 00:00:04]} 28. b3 {[%clk 00:00:26]} {[%emt 00:00:06]} Nd6 {[%clk
00:00:15]} {[%emt 00:00:09]} 29. Re1 {[%clk 00:00:15]} {[%emt 00:00:16]} Nf5
{[%clk 00:00:18]} {[%emt 00:00:04]} 30. a4 {[%clk 00:00:11]} {[%emt 00:00:09]}
Rh8 {[%clk 00:00:12]} {[%emt 00:00:10]} 31. h3 {[%clk 00:15:05]} 0-1

[Event "The Kvibergspelen 2024"]
[Site "Kviberg Park Hotel & Conference, Krutvagen 2, Gothenburg, Sweden"]
[Date "2024.09.06"]
[Round "3.21"]
[White "Lilliehook, Victor"]
[Black "Lindholm, Marcus"]
[Result "1-0"]
[TimeControl "15 minutes + 5 seconds per move from move one (Round 1 - 4) / 90 minutes + 30 seconds per move from move one (Round 5 - 8)"]
[WhiteFideId "1752103"]
[BlackFideId "1743473"]
[WhiteElo "2017"]
[BlackElo "1853"]

1. e4 {[%clk 00:15:08]} {[%emt 00:00:02]} c5 {[%clk 00:15:08]} 2. Nf3 {[%clk
00:15:12]} Nc6 {[%clk 00:15:12]} {[%emt 00:00:02]} 3. d4 {[%clk 00:15:12]}
{[%emt 00:00:06]} cxd4 {[%clk 00:15:15]} {[%emt 00:00:02]} 4. Nxd4 {[%clk
00:15:16]} Nf6 {[%clk 00:15:18]} {[%emt 00:00:03]} 5. Nc3 {[%clk 00:15:20]} e5
{[%clk 00:15:22]} {[%emt 00:00:02]} 6. Ndb5 {[%clk 00:15:23]} {[%emt 00:00:01]}
d6 {[%clk 00:15:25]} {[%emt 00:00:02]} 7. a4 {[%clk 00:15:27]} {[%emt
00:00:02]} a6 {[%clk 00:15:24]} {[%emt 00:00:06]} 8. Na3 {[%clk 00:15:31]} Be6
{[%clk 00:15:17]} {[%emt 00:00:12]} 9. Bg5 {[%clk 00:15:34]} {[%emt 00:00:01]}
Be7 {[%clk 00:15:20]} {[%emt 00:00:03]} 10. Bxf6 {[%clk 00:15:38]} {[%emt
00:00:01]} Bxf6 {[%clk 00:15:23]} {[%emt 00:00:02]} 11. Bc4 {[%clk 00:15:42]}
{[%emt 00:00:01]} Rc8 {[%clk 00:14:48]} {[%emt 00:00:40]} 12. Nd5 {[%clk
00:14:26]} {[%emt 00:01:21]} Bg5 {[%clk 00:14:34]} {[%emt 00:00:19]} 13. c3
{[%clk 00:14:14]} {[%emt 00:00:17]} Ne7 {[%clk 00:13:32]} {[%emt 00:01:07]} 14.
O-O {[%clk 00:13:33]} {[%emt 00:00:46]} O-O {[%clk 00:13:08]} {[%emt 00:00:29]}
15. Qb3 {[%clk 00:13:28]} {[%emt 00:00:11]} Bxd5 {[%clk 00:12:36]} {[%emt
00:00:37]} 16. Bxd5 {[%clk 00:13:26]} {[%emt 00:00:06]} Nxd5 {[%clk 00:12:37]}
{[%emt 00:00:05]} 17. Qxd5 {[%clk 00:13:24]} {[%emt 00:00:07]} Qc7 {[%clk
00:12:23]} {[%emt 00:00:19]} 18. Rfd1 {[%clk 00:12:40]} {[%emt 00:00:48]} Rfd8
{[%clk 00:12:21]} {[%emt 00:00:07]} 19. Rd3 {[%clk 00:10:37]} {[%emt 00:02:08]}
Qc6 {[%clk 00:11:20]} {[%emt 00:01:06]} 20. Qxc6 {[%clk 00:07:42]} {[%emt
00:03:00]} Rxc6 {[%clk 00:11:22]} {[%emt 00:00:03]} 21. Rad1 {[%clk 00:07:37]}
{[%emt 00:00:09]} Be7 {[%clk 00:10:55]} {[%emt 00:00:32]} 22. a5 {[%clk
00:06:13]} {[%emt 00:01:30]} b6 {[%clk 00:09:41]} {[%emt 00:01:20]} 23. axb6
{[%clk 00:05:51]} {[%emt 00:00:27]} Rxb6 {[%clk 00:09:43]} {[%emt 00:00:03]} 24.
Nc4 {[%clk 00:04:57]} {[%emt 00:00:59]} Rc6 {[%clk 00:09:36]} {[%emt 00:00:11]}
25. Nxe5 {[%clk 00:04:35]} {[%emt 00:00:27]} Rc5 {[%clk 00:09:34]} {[%emt
00:00:07]} 26. Nf3 {[%clk 00:04:00]} {[%emt 00:00:40]} Rb8 {[%clk 00:09:25]}
{[%emt 00:00:14]} 27. b4 {[%clk 00:03:56]} {[%emt 00:00:09]} Rc4 {[%clk
00:09:22]} {[%emt 00:00:08]} 28. e5 {[%clk 00:01:55]} {[%emt 00:02:06]} d5
{[%clk 00:08:36]} {[%emt 00:00:52]} 29. Nd4 {[%clk 00:01:34]} {[%emt 00:00:26]}
Rbc8 {[%clk 00:08:22]} {[%emt 00:00:18]} 30. Nf5 {[%clk 00:00:45]} {[%emt
00:00:53]} Bg5 {[%clk 00:07:35]} {[%emt 00:00:52]} 31. Nd6 {[%clk 00:00:34]}
{[%emt 00:00:17]} Rxc3 {[%clk 00:07:02]} {[%emt 00:00:38]} 32. Nxc8 {[%clk
00:00:37]} {[%emt 00:00:02]} Rxc8 {[%clk 00:07:04]} {[%emt 00:00:03]} 33. Rxd5
{[%clk 00:00:41]} g6 {[%clk 00:06:58]} {[%emt 00:00:12]} 34. g3 {[%clk
00:00:29]} {[%emt 00:00:18]} Rb8 {[%clk 00:06:55]} {[%emt 00:00:08]} 35. Rb1
{[%clk 00:00:31]} {[%emt 00:00:02]} Be7 {[%clk 00:06:56]} {[%emt 00:00:04]} 36.
b5 {[%clk 00:00:35]} a5 {[%clk 00:06:57]} {[%emt 00:00:05]} 37. b6 {[%clk
00:00:22]} {[%emt 00:00:18]} Bb4 {[%clk 00:06:59]} {[%emt 00:00:03]} 38. Rb5
{[%clk 00:00:25]} {[%emt 00:00:02]} Kf8 {[%clk 00:06:55]} {[%emt 00:00:08]} 39.
b7 {[%clk 00:00:19]} {[%emt 00:00:11]} Ke7 {[%clk 00:06:54]} {[%emt 00:00:06]}
40. Rc1 {[%clk 00:00:10]} {[%emt 00:00:15]} Kd7 {[%clk 00:06:52]} {[%emt
00:00:06]} 41. Kg2 {[%clk 00:00:12]} {[%emt 00:00:02]} Be7 {[%clk 00:06:43]}
{[%emt 00:00:14]} 42. Rd5+ {[%clk 00:00:08]} {[%emt 00:00:09]} Ke6 {[%clk
00:06:45]} {[%emt 00:00:03]} 43. Rb5 {[%clk 00:00:12]} Kd7 {[%clk 00:06:30]}
{[%emt 00:00:21]} 44. Rcb1 {[%clk 00:00:07]} {[%emt 00:00:10]} a4 {[%clk
00:06:29]} {[%emt 00:00:06]} 45. Ra5 {[%clk 00:00:09]} {[%emt 00:00:03]} a3
{[%clk 00:06:31]} {[%emt 00:00:03]} 46. Ra8 {[%clk 00:00:09]} {[%emt 00:00:05]}
a2 {[%clk 00:06:33]} {[%emt 00:00:03]} 47. Rxa2 {[%clk 00:00:11]} {[%emt
00:00:04]} Kc7 {[%clk 00:06:33]} {[%emt 00:00:05]} 48. Rc2+ {[%clk 00:00:15]}
{[%emt 00:00:01]} Kd7 {[%clk 00:06:36]} 49. f4 {[%clk 00:00:13]} {[%emt
00:00:07]} 1-0